[Event "European Rapid Championship 2021"]
[Site "Katowice"]
[Date "2021.12.18"]
[Round "4.27"]
[White "Jozwik, Jacek"]
[Black "Walter, Szymon"]
[Result "0-1"]
[ECO "E16"]
[WhiteElo "1817"]
[BlackElo "2203"]
[Annotator "NA"]
[PlyCount "65"]
[EventDate "2021.12.18"]
[EventType "swiss"]
[EventCountry "POL"]
[SourceTitle "playchess.com"]
[Source "ChessBase"]
[SourceQuality "1"]
[TimeControl "900+10"]

1. d4 {[%emt 0:00:03]} Nf6 {[%emt 0:00:07]} 2. c4 {[%emt 0:00:02]} e6 {[%emt 0:
00:04]} 3. Nf3 {[%emt 0:00:03]} Bb4+ {[%emt 0:00:04]} 4. Bd2 {[%emt 0:00:04]}
Qe7 {[%emt 0:00:08]} 5. g3 {[%emt 0:00:12]} Nc6 {[%emt 0:00:10]} 6. Bg2 {
[%emt 0:00:09]} Bxd2+ {[%emt 0:00:07]} 7. Nbxd2 {[%emt 0:00:22]} d6 {[%emt 0:
00:10]} 8. O-O {[%emt 0:01:47]} O-O {[%emt 0:00:05]} 9. a3 {[%emt 0:00:43]} a5
{[%emt 0:00:15]} 10. Qc2 {[%emt 0:00:52]} Bd7 {[%emt 0:00:48]} 11. e3 {[%emt 0:
00:36]} e5 {[%emt 0:01:09]} 12. Ne4 {[%emt 0:01:37]} exd4 {[%emt 0:00:27]} 13.
Nxf6+ {[%emt 0:01:18]} Qxf6 {[%emt 0:00:03]} 14. exd4 {[%emt 0:00:02]} Nxd4 {
[%emt 0:00:10]} 15. Nxd4 {[%emt 0:00:04]} Qxd4 {[%emt 0:00:03]} 16. Rad1 {
[%emt 0:00:08]} Qf6 {[%emt 0:00:11]} 17. c5 {[%emt 0:00:20]} Bg4 {[%emt 0:00:
34]} 18. Rd2 {[%emt 0:00:29]} dxc5 {[%emt 0:00:19]} 19. Bxb7 {[%emt 0:00:15]}
Rab8 {[%emt 0:00:25]} 20. Bg2 {[%emt 0:00:08]} a4 {[%emt 0:05:17]} 21. Qxa4 {
[%emt 0:00:50]} Be6 {[%emt 0:00:15]} 22. Qc2 {[%emt 0:01:51]} c4 {[%emt 0:00:
05]} 23. Re1 {[%emt 0:02:17]} Rb3 {[%emt 0:01:57]} 24. Re4 {[%emt 0:01:36]}
Rfb8 {[%emt 0:01:01]} 25. Red4 {[%emt 0:00:06]} c5 {[%emt 0:00:50]} 26. Rd6 {
[%emt 0:01:03]} g6 {[%emt 0:01:34]} 27. Qxc4 {[%emt 0:01:07]} Bxc4 {[%emt 0:00:
02]} 28. Rxf6 {[%emt 0:00:02]} Rxb2 {[%emt 0:00:01]} 29. Rxb2 {[%emt 0:00:39]}
Rxb2 {[%emt 0:00:02]} 30. Be4 {[%emt 0:00:11]} Re2 {[%emt 0:01:03]} 31. f3 {
[%emt 0:00:31]} Be6 {[%emt 0:00:10]} 32. Rf4 {[%emt 0:00:17]} Bc4 33. Rf6 0-1

[Event "European Rapid Championship 2021"]
[Site "Katowice"]
[Date "2021.12.18"]
[Round "4.28"]
[White "Flasinski, Michal"]
[Black "Vetoshko, Volodymyr"]
[Result "0-1"]
[ECO "D30"]
[WhiteElo "2195"]
[BlackElo "2483"]
[Annotator "ChessBase"]
[PlyCount "95"]
[EventDate "2021.12.18"]
[EventType "swiss"]
[EventCountry "POL"]
[SourceTitle "playchess.com"]
[Source "ChessBase"]
[SourceQuality "1"]
[TimeControl "900+10"]

1. d4 {[%emt 0:00:02]} d5 {[%emt 0:00:05]} 2. c4 e6 3. Nf3 {[%emt 0:00:04]} a6
{[%emt 0:00:01]} 4. Nbd2 {[%emt 0:00:13]} Nf6 {[%emt 0:00:22]} 5. g3 c5 6. cxd5
{[%emt 0:00:10]} exd5 {[%emt 0:00:55]} 7. Bg2 {[%emt 0:00:03]} Nc6 {[%emt 0:00:
00]} 8. O-O {[%emt 0:00:10]} Be6 {[%emt 0:01:24]} 9. Nb3 {[%emt 0:02:46]} c4 {
[%emt 0:02:35]} 10. Nc5 {[%emt 0:00:02]} Bxc5 {[%emt 0:00:38]} 11. dxc5 {
[%emt 0:00:02]} d4 {[%emt 0:00:11]} 12. Bf4 {[%emt 0:00:21]} Ne4 {[%emt 0:03:
17]} 13. Ne5 {[%emt 0:00:31]} f5 {[%emt 0:01:16]} 14. Nxc6 {[%emt 0:02:40]}
bxc6 {[%emt 0:00:01]} 15. Be5 {[%emt 0:00:05]} O-O {[%emt 0:00:24]} 16. Qxd4 {
[%emt 0:00:18]} Qxd4 {[%emt 0:00:49]} 17. Bxd4 {[%emt 0:00:02]} Bd5 {[%emt 0:
01:03]} 18. Rfd1 {[%emt 0:01:18]} Rab8 {[%emt 0:00:31]} 19. Rac1 {[%emt 0:00:
34]} Rb5 {[%emt 0:01:04]} 20. Bf1 {[%emt 0:01:27]} Nxc5 {[%emt 0:00:24]} 21. b3
{[%emt 0:01:10]} cxb3 {[%emt 0:01:26]} 22. Rxc5 {[%emt 0:00:17]} bxa2 {[%emt 0:
00:12]} 23. Rxb5 {[%emt 0:00:59]} axb5 {[%emt 0:00:02]} 24. Ba1 {[%emt 0:00:36]
} Ra8 {[%emt 0:00:30]} 25. Bg2 {[%emt 0:00:22]} Ra4 {[%emt 0:01:34]} 26. Rd2 {
[%emt 0:01:19]} Kf7 {[%emt 0:00:12]} 27. Bxd5+ {[%emt 0:00:19]} cxd5 {[%emt 0:
00:00]} 28. Rb2 {[%emt 0:00:05]} b4 {[%emt 0:00:13]} 29. Kg2 {[%emt 0:00:12]}
Ke6 {[%emt 0:00:02]} 30. Kf3 {[%emt 0:00:02]} d4 {[%emt 0:00:28]} 31. Rd2 {
[%emt 0:00:14]} b3 {[%emt 0:00:11]} 32. Rxd4 {[%emt 0:00:17]} b2 {[%emt 0:00:
02]} 33. Bxb2 {[%emt 0:00:02]} a1=Q {[%emt 0:00:05]} 34. Bxa1 {[%emt 0:00:02]}
Rxa1 {[%emt 0:00:01]} 35. Rb4 {[%emt 0:00:05]} Ra2 {[%emt 0:00:20]} 36. Rb7 {
[%emt 0:00:06]} Kf6 {[%emt 0:00:01]} 37. h4 {[%emt 0:00:03]} Ra3+ {[%emt 0:00:
35]} 38. Kf4 {[%emt 0:00:28]} Ra4+ {[%emt 0:00:02]} 39. Kf3 {[%emt 0:00:01]}
Ra3+ {[%emt 0:00:02]} 40. e3 {[%emt 0:00:02]} Ra2 {[%emt 0:00:00]} 41. Rb6+ {
[%emt 0:00:02]} Kf7 {[%emt 0:00:04]} 42. Rb5 {[%emt 0:00:04]} Kf6 {[%emt 0:00:
03]} 43. Rb7 {[%emt 0:00:03]} Rc2 {[%emt 0:00:06]} 44. Ra7 {[%emt 0:00:03]} Rb2
{[%emt 0:00:01]} 45. h5 {[%emt 0:00:25]} h6 {[%emt 0:01:00]} 46. Ra6+ {[%emt 0:
00:10]} Kf7 {[%emt 0:00:02]} 47. Ra5 {[%emt 0:00:16]} Kf6 {[%emt 0:00:02]} 48.
Ra6+ {[%emt 0:00:50]} 0-1

[Event "European Rapid Championship 2021"]
[Site "Katowice"]
[Date "2021.12.18"]
[Round "4.28"]
[White "Rykala, Monika"]
[Black "Kos, Pawel"]
[Result "0-1"]
[ECO "E76"]
[WhiteElo "1883"]
[BlackElo "2199"]
[Annotator "NA"]
[PlyCount "62"]
[EventDate "2021.12.18"]
[EventType "swiss"]
[EventCountry "POL"]
[SourceTitle "playchess.com"]
[Source "ChessBase"]
[SourceQuality "1"]
[TimeControl "900+10"]

1. d4 {[%emt 0:00:01]} Nf6 {[%emt 0:00:03]} 2. c4 {[%emt 0:00:04]} g6 {[%emt 0:
00:03]} 3. Nc3 {[%emt 0:00:02]} Bg7 {[%emt 0:00:01]} 4. e4 {[%emt 0:00:02]} d6
{[%emt 0:00:02]} 5. f4 {[%emt 0:00:04]} c6 {[%emt 0:00:51]} 6. Nf3 {[%emt 0:00:
08]} a6 {[%emt 0:00:09]} 7. a4 {[%emt 0:00:23]} Qa5 {[%emt 0:02:02]} 8. Bd2 {
[%emt 0:00:57]} Bg4 {[%emt 0:00:20]} 9. Nd5 {[%emt 0:06:41]} Qd8 {[%emt 0:00:
31]} 10. Nxf6+ {[%emt 0:00:02]} exf6 {[%emt 0:01:10]} 11. Qb3 {[%emt 0:00:43]}
Qe7 {[%emt 0:01:07]} 12. O-O-O {[%emt 0:00:30]} b5 {[%emt 0:00:30]} 13. a5 {
[%emt 0:00:37]} O-O {[%emt 0:00:20]} 14. h3 {[%emt 0:00:23]} Be6 {[%emt 0:00:
49]} 15. d5 {[%emt 0:00:20]} Bd7 {[%emt 0:00:26]} 16. Bd3 {[%emt 0:00:39]} bxc4
{[%emt 0:00:49]} 17. Bxc4 {[%emt 0:00:01]} f5 {[%emt 0:01:16]} 18. e5 {[%emt 0:
00:56]} Rc8 {[%emt 0:01:54]} 19. exd6 {[%emt 0:01:02]} Qxd6 {[%emt 0:00:30]}
20. Bb4 {[%emt 0:01:01]} Qxf4+ {[%emt 0:00:22]} 21. Kb1 {[%emt 0:00:00]} Ra7 {
[%emt 0:00:46]} 22. Bc5 {[%emt 0:02:39]} cxd5 {[%emt 0:00:14]} 23. Bxa7 {
[%emt 0:00:07]} dxc4 {[%emt 0:00:02]} 24. Qb6 {[%emt 0:01:16]} c3 {[%emt 0:01:
37]} 25. Rd4 {[%emt 0:00:26]} c2+ {[%emt 0:00:17]} 26. Ka2 {[%emt 0:00:01]}
Be6+ {[%emt 0:01:22]} 27. b3 {[%emt 0:00:01]} Bxd4 {[%emt 0:00:12]} 28. Nxd4 {
[%emt 0:00:09]} Qd2 {[%emt 0:01:23]} 29. Nf3 {[%emt 0:00:28]} c1=N+ {[%emt 0:
00:30]} 30. Ka3 Qa2+ {[%emt 0:00:05]} 31. Kb4 {[%emt 0:00:02]} Qxb3# 0-1

[Event "European Rapid Championship 2021"]
[Site "Katowice"]
[Date "2021.12.18"]
[Round "4.29"]
[White "Reimanis, Ritvars"]
[Black "Bogdanov, Ignat"]
[Result "1/2-1/2"]
[ECO "D26"]
[WhiteElo "2397"]
[BlackElo "2058"]
[Annotator "NA"]
[PlyCount "54"]
[EventDate "2021.12.18"]
[EventType "swiss"]
[EventCountry "POL"]
[SourceTitle "playchess.com"]
[Source "ChessBase"]
[SourceQuality "1"]
[TimeControl "900+10"]

1. Nf3 {[%emt 0:01:34]} d5 {[%emt 0:00:06]} 2. d4 {[%emt 0:00:01]} Nf6 {
[%emt 0:00:02]} 3. c4 {[%emt 0:00:02]} dxc4 {[%emt 0:00:10]} 4. e3 {[%emt 0:00:
01]} c5 {[%emt 0:00:08]} 5. Bxc4 {[%emt 0:00:01]} cxd4 {[%emt 0:00:03]} 6. O-O
{[%emt 0:00:04]} e6 {[%emt 0:00:03]} 7. exd4 {[%emt 0:00:03]} Be7 {[%emt 0:00:
04]} 8. Nc3 {[%emt 0:00:04]} O-O {[%emt 0:00:03]} 9. Re1 {[%emt 0:00:17]} Nc6 {
[%emt 0:01:03]} 10. a3 {[%emt 0:00:08]} a6 {[%emt 0:00:39]} 11. Bg5 {[%emt 0:
00:50]} b5 {[%emt 0:01:32]} 12. Ba2 {[%emt 0:00:04]} Bb7 {[%emt 0:00:06]} 13.
Qd2 {[%emt 0:08:31]} b4 {[%emt 0:02:41]} 14. axb4 {[%emt 0:00:05]} Nxb4 {
[%emt 0:00:11]} 15. Bc4 {[%emt 0:01:01]} Bxf3 {[%emt 0:02:04]} 16. gxf3 {
[%emt 0:00:01]} Nfd5 {[%emt 0:00:25]} 17. Be3 {[%emt 0:01:15]} Bd6 {[%emt 0:03:
33]} 18. Nxd5 {[%emt 0:02:01]} Nxd5 {[%emt 0:01:16]} 19. Bxd5 {[%emt 0:00:23]}
exd5 {[%emt 0:00:01]} 20. Bf4 {[%emt 0:00:06]} Bxf4 {[%emt 0:00:20]} 21. Qxf4 {
[%emt 0:00:01]} Qb6 {[%emt 0:00:04]} 22. Re2 {[%emt 0:00:40]} Rac8 {[%emt 0:01:
04]} 23. Rae1 {[%emt 0:00:20]} Qg6+ {[%emt 0:01:24]} 24. Kf1 {[%emt 0:00:52]}
Rc2 {[%emt 0:00:24]} 25. Re8 {[%emt 0:00:25]} Rc8 {[%emt 0:01:00]} 26. R8e5 {
[%emt 0:00:14]} Rc2 {[%emt 0:00:20]} 27. Re8 {[%emt 0:00:01]} Rc8 {[%emt 0:00:
02]} 1/2-1/2

[Event "European Rapid Championship 2021"]
[Site "Katowice"]
[Date "2021.12.18"]
[Round "4.29"]
[White "Trzebinski, Patryk"]
[Black "Lewtak, Damian"]
[Result "0-1"]
[ECO "B06"]
[WhiteElo "1767"]
[BlackElo "2185"]
[Annotator "NA"]
[PlyCount "108"]
[EventDate "2021.12.18"]
[EventType "swiss"]
[EventCountry "POL"]
[SourceTitle "playchess.com"]
[Source "ChessBase"]
[SourceQuality "1"]
[TimeControl "900+10"]

1. e4 {[%emt 0:00:01]} g6 {[%emt 0:00:02]} 2. d4 {[%emt 0:00:06]} Bg7 {[%emt 0:
00:02]} 3. Be3 {[%emt 0:00:01]} b6 {[%emt 0:00:02]} 4. Bd3 {[%emt 0:00:03]} Bb7
{[%emt 0:00:02]} 5. Nd2 {[%emt 0:00:02]} e6 {[%emt 0:00:16]} 6. Ne2 {[%emt 0:
00:05]} Ne7 {[%emt 0:00:03]} 7. O-O {[%emt 0:00:09]} O-O {[%emt 0:00:08]} 8. c3
{[%emt 0:00:02]} f5 {[%emt 0:00:03]} 9. f3 {[%emt 0:00:02]} a5 {[%emt 0:00:27]}
10. Qc2 {[%emt 0:00:20]} a4 {[%emt 0:00:37]} 11. b3 {[%emt 0:00:18]} Bc6 {
[%emt 0:01:01]} 12. b4 {[%emt 0:01:23]} b5 {[%emt 0:00:33]} 13. Bg5 {[%emt 0:
00:45]} h6 {[%emt 0:00:12]} 14. Bxe7 {[%emt 0:00:28]} Qxe7 {[%emt 0:00:02]} 15.
Nf4 {[%emt 0:01:28]} Qg5 {[%emt 0:00:59]} 16. Nh3 {[%emt 0:00:40]} Qh4 {
[%emt 0:00:26]} 17. d5 {[%emt 0:00:49]} exd5 {[%emt 0:00:26]} 18. exd5 {
[%emt 0:01:13]} Bxd5 {[%emt 0:00:12]} 19. Bxb5 {[%emt 0:00:02]} Qf6 {[%emt 0:
00:04]} 20. Rac1 {[%emt 0:00:52]} Qb6+ {[%emt 0:00:26]} 21. Kh1 {[%emt 0:00:12]
} Qxb5 {[%emt 0:00:20]} 22. c4 {[%emt 0:00:01]} Bxc4 {[%emt 0:00:10]} 23. Nxc4
{[%emt 0:00:38]} Qxb4 {[%emt 0:00:26]} 24. Nf4 {[%emt 0:00:11]} Kh7 {[%emt 0:
00:45]} 25. g4 {[%emt 0:00:32]} Qc5 {[%emt 0:00:06]} 26. Rg1 {[%emt 0:02:13]}
Ra6 {[%emt 0:00:13]} 27. h4 {[%emt 0:04:51]} fxg4 {[%emt 0:01:34]} 28. Rxg4 {
[%emt 0:00:23]} Qf5 {[%emt 0:00:02]} 29. Qg2 {[%emt 0:00:13]} Rc6 {[%emt 0:03:
21]} 30. Rg1 {[%emt 0:01:05]} Qxf4 {[%emt 0:00:04]} 31. Rxf4 {[%emt 0:00:42]}
Rxf4 {[%emt 0:00:01]} 32. Qg3 {[%emt 0:00:11]} Rfxc4 {[%emt 0:00:11]} 33. f4 {
[%emt 0:00:07]} R4c5 {[%emt 0:00:35]} 34. Re1 {[%emt 0:00:08]} h5 {[%emt 0:00:
22]} 35. Re7 {[%emt 0:00:18]} Rc1+ {[%emt 0:00:04]} 36. Re1 {[%emt 0:00:07]}
R6c3 {[%emt 0:00:43]} 37. Qf2 {[%emt 0:00:02]} Nc6 {[%emt 0:00:34]} 38. f5 {
[%emt 0:00:14]} Rxe1+ {[%emt 0:00:15]} 39. Qxe1 {[%emt 0:00:01]} gxf5 {[%emt 0:
00:03]} 40. Qd1 {[%emt 0:00:06]} Rh3+ {[%emt 0:00:11]} 41. Kg2 {[%emt 0:00:02]}
Rxh4 {[%emt 0:00:03]} 42. Qxd7 {[%emt 0:00:05]} Rg4+ {[%emt 0:00:34]} 43. Kf2 {
[%emt 0:00:02]} Nd4 {[%emt 0:00:50]} 44. Qxa4 {[%emt 0:00:19]} h4 {[%emt 0:00:
13]} 45. Qe8 {[%emt 0:00:03]} Kh6 {[%emt 0:01:33]} 46. a4 Re4 {[%emt 0:00:41]}
47. Qd7 {[%emt 0:00:56]} h3 {[%emt 0:00:32]} 48. Kg3 {[%emt 0:00:16]} Re3+ {
[%emt 0:00:03]} 49. Kf2 {[%emt 0:00:19]} h2 {[%emt 0:00:49]} 50. Kxe3 {[%emt 0:
00:10]} h1=Q {[%emt 0:00:04]} 51. Qxc7 {[%emt 0:00:04]} Qe4+ {[%emt 0:00:09]}
52. Kf2 {[%emt 0:00:09]} Qe2+ {[%emt 0:00:10]} 53. Kg1 {[%emt 0:00:02]} Nf3+ {
[%emt 0:00:04]} 54. Kh1 {[%emt 0:00:01]} Qf1# {[%emt 0:00:00]} 0-1

[Event "European Rapid Championship 2021"]
[Site "Katowice"]
[Date "2021.12.18"]
[Round "4.30"]
[White "Sanz Wawer, Daniel"]
[Black "Nasuta, Grzegorz"]
[Result "1-0"]
[ECO "B81"]
[WhiteElo "2371"]
[BlackElo "2345"]
[Annotator "NA"]
[PlyCount "57"]
[EventDate "2021.12.18"]
[EventType "swiss"]
[EventCountry "POL"]
[SourceTitle "playchess.com"]
[Source "ChessBase"]
[SourceQuality "1"]
[TimeControl "900+10"]

1. e4 {[%emt 0:00:02]} c5 {[%emt 0:00:06]} 2. Nf3 {[%emt 0:00:02]} e6 {[%emt 0:
00:12]} 3. d4 {[%emt 0:00:02]} cxd4 {[%emt 0:00:02]} 4. Nxd4 {[%emt 0:00:01]}
Nf6 {[%emt 0:00:07]} 5. Nc3 {[%emt 0:00:02]} d6 {[%emt 0:00:01]} 6. g4 {
[%emt 0:00:03]} h6 {[%emt 0:00:02]} 7. h4 {[%emt 0:00:05]} Nc6 {[%emt 0:00:03]}
8. Rg1 {[%emt 0:00:14]} d5 {[%emt 0:02:17]} 9. exd5 {[%emt 0:00:02]} Nxd5 {
[%emt 0:00:02]} 10. Nxd5 {[%emt 0:00:03]} exd5 {[%emt 0:00:22]} 11. Be3 {
[%emt 0:00:02]} Qxh4 {[%emt 0:00:02]} 12. Qf3 {[%emt 0:00:02]} Nxd4 {[%emt 0:
00:05]} 13. Bxd4 {[%emt 0:00:01]} Qe7+ {[%emt 0:00:01]} 14. Be2 {[%emt 0:00:01]
} Qe4 {[%emt 0:00:38]} 15. O-O-O {[%emt 0:00:03]} Qxf3 {[%emt 0:00:08]} 16.
Bxf3 {[%emt 0:00:01]} Be6 {[%emt 0:00:01]} 17. Rge1 {[%emt 0:00:09]} Kd7 {
[%emt 0:00:38]} 18. Be3 {[%emt 0:00:47]} b6 {[%emt 0:05:33]} 19. Bxd5 {[%emt 0:
00:53]} Bxd5 {[%emt 0:00:01]} 20. Rxd5+ {[%emt 0:00:02]} Kc6 {[%emt 0:00:01]}
21. Red1 {[%emt 0:00:19]} f6 {[%emt 0:01:39]} 22. Rd7 {[%emt 0:00:48]} h5 {
[%emt 0:01:19]} 23. Bf4 {[%emt 0:01:56]} hxg4 {[%emt 0:00:56]} 24. a4 {[%emt 0:
03:57]} Rc8 {[%emt 0:00:35]} 25. Rxa7 {[%emt 0:00:37]} g5 {[%emt 0:00:01]} 26.
Bg3 {[%emt 0:00:34]} f5 {[%emt 0:00:03]} 27. Be5 {[%emt 0:00:41]} Rh6 {[%emt 0:
00:03]} 28. c4 {[%emt 0:02:23]} Re6 {[%emt 0:04:17]} 29. Rd8 {[%emt 0:00:17]}
1-0

[Event "European Rapid Championship 2021"]
[Site "Katowice"]
[Date "2021.12.18"]
[Round "4.30"]
[White "Rudnicki, Milosz"]
[Black "Hasinski, Krystian"]
[Result "1-0"]
[ECO "A40"]
[WhiteElo "2200"]
[BlackElo "1811"]
[Annotator "NA"]
[PlyCount "111"]
[EventDate "2021.12.18"]
[EventType "swiss"]
[EventCountry "POL"]
[SourceTitle "playchess.com"]
[Source "ChessBase"]
[SourceQuality "1"]
[TimeControl "900+10"]

1. d4 {[%emt 0:00:02]} c6 {[%emt 0:00:02]} 2. Bf4 {[%emt 0:00:05]} Nf6 {
[%emt 0:00:28]} 3. e3 {[%emt 0:00:02]} g6 {[%emt 0:00:16]} 4. Nc3 {[%emt 0:00:
08]} Bg7 {[%emt 0:00:06]} 5. h4 {[%emt 0:00:03]} h5 {[%emt 0:00:05]} 6. Nf3 {
[%emt 0:00:03]} Qa5 {[%emt 0:00:36]} 7. Qd2 {[%emt 0:00:58]} Nd5 {[%emt 0:00:
54]} 8. Nxd5 {[%emt 0:00:26]} Qxd2+ {[%emt 0:00:08]} 9. Nxd2 {[%emt 0:00:56]}
cxd5 {[%emt 0:00:03]} 10. c4 {[%emt 0:00:01]} dxc4 {[%emt 0:00:11]} 11. Bxc4 {
[%emt 0:00:17]} d6 {[%emt 0:00:39]} 12. O-O {[%emt 0:00:35]} Nc6 {[%emt 0:01:
05]} 13. a3 {[%emt 0:00:18]} Bd7 {[%emt 0:01:32]} 14. Rac1 {[%emt 0:00:20]} O-O
{[%emt 0:00:22]} 15. Nf3 {[%emt 0:00:16]} Rac8 {[%emt 0:01:15]} 16. Ng5 {
[%emt 0:00:13]} Bf6 {[%emt 0:00:29]} 17. b4 {[%emt 0:00:06]} Kg7 {[%emt 0:00:
40]} 18. Bg3 {[%emt 0:00:40]} Bxg5 {[%emt 0:00:11]} 19. hxg5 {[%emt 0:00:02]}
a6 {[%emt 0:00:37]} 20. Rfd1 {[%emt 0:00:53]} Na7 {[%emt 0:00:03]} 21. f3 {
[%emt 0:01:28]} Rc7 {[%emt 0:01:21]} 22. Bd3 {[%emt 0:03:49]} Rfc8 {[%emt 0:00:
05]} 23. Rxc7 {[%emt 0:00:02]} Rxc7 {[%emt 0:00:02]} 24. Be1 {[%emt 0:00:02]}
Bb5 {[%emt 0:01:33]} 25. Be4 {[%emt 0:00:50]} Ba4 {[%emt 0:00:28]} 26. Ra1 {
[%emt 0:00:12]} Nb5 {[%emt 0:00:28]} 27. Kf2 {[%emt 0:00:29]} e6 {[%emt 0:00:
15]} 28. Bd3 {[%emt 0:02:13]} d5 {[%emt 0:00:20]} 29. Bd2 {[%emt 0:01:04]} Nd6
{[%emt 0:00:33]} 30. Rc1 {[%emt 0:00:37]} Nc4 {[%emt 0:00:35]} 31. Bxc4 {
[%emt 0:00:16]} Rxc4 {[%emt 0:01:56]} 32. Bc3 {[%emt 0:00:49]} Kf8 {[%emt 0:00:
26]} 33. Ke2 {[%emt 0:00:12]} Ke7 {[%emt 0:00:08]} 34. Kd2 {[%emt 0:00:01]} Kd6
{[%emt 0:00:13]} 35. e4 {[%emt 0:00:09]} Be8 {[%emt 0:01:10]} 36. Rh1 {[%emt 0:
00:22]} b5 {[%emt 0:00:28]} 37. Rh4 {[%emt 0:00:18]} Bc6 {[%emt 0:00:26]} 38.
Kd3 {[%emt 0:00:10]} Ke7 {[%emt 0:00:07]} 39. g4 {[%emt 0:00:25]} hxg4 {
[%emt 0:00:19]} 40. Rxg4 {[%emt 0:00:01]} Bb7 {[%emt 0:00:07]} 41. Rh4 {
[%emt 0:00:04]} Rc8 {[%emt 0:00:06]} 42. Bd2 {[%emt 0:00:28]} Rf8 {[%emt 0:01:
01]} 43. Rh7 {[%emt 0:00:11]} Rg8 {[%emt 0:00:16]} 44. Bf4 {[%emt 0:00:10]} Bc6
{[%emt 0:00:02]} 45. Be5 {[%emt 0:00:08]} Bb7 {[%emt 0:00:02]} 46. Bf6+ {
[%emt 0:00:03]} Ke8 {[%emt 0:00:01]} 47. Ke3 {[%emt 0:00:15]} Bc6 {[%emt 0:00:
02]} 48. Kf4 {[%emt 0:00:03]} Bb7 {[%emt 0:00:24]} 49. Ke5 {[%emt 0:00:02]} Ba8
{[%emt 0:00:03]} 50. Rh4 {[%emt 0:00:16]} Kd7 {[%emt 0:00:04]} 51. Rh7 {
[%emt 0:00:47]} Ke8 {[%emt 0:00:05]} 52. Kd6 {[%emt 0:01:09]} dxe4 {[%emt 0:00:
10]} 53. Rh1 {[%emt 0:00:07]} exf3 {[%emt 0:00:13]} 54. Rc1 {[%emt 0:00:01]}
Bb7 {[%emt 0:00:00]} 55. Rc7 {[%emt 0:00:09]} f2 {[%emt 0:00:17]} 56. Rxb7 {
[%emt 0:00:02]} 1-0

[Event "European Rapid Championship 2021"]
[Site "Katowice"]
[Date "2021.12.18"]
[Round "5.1"]
[White "Kacprzak, Kacper"]
[Black "Bjerre, Jonas Buhl"]
[Result "0-1"]
[ECO "B90"]
[WhiteElo "2042"]
[BlackElo "2330"]
[Annotator "NA"]
[PlyCount "96"]
[EventDate "2021.12.18"]
[EventType "swiss"]
[EventCountry "POL"]
[SourceTitle "playchess.com"]
[Source "ChessBase"]
[SourceQuality "1"]
[TimeControl "900+10"]

1. e4 {[%emt 0:00:03]} c5 {[%emt 0:00:00]} 2. Nf3 d6 3. d4 {[%emt 0:00:03]}
cxd4 {[%emt 0:00:02]} 4. Nxd4 {[%emt 0:00:02]} Nf6 {[%emt 0:00:00]} 5. Nc3 {
[%emt 0:00:07]} a6 {[%emt 0:00:01]} 6. Nb3 {[%emt 0:00:02]} Nbd7 {[%emt 0:00:
03]} 7. Be3 {[%emt 0:00:28]} b5 {[%emt 0:00:07]} 8. g4 {[%emt 0:02:15]} Bb7 {
[%emt 0:00:08]} 9. Bg2 {[%emt 0:00:04]} b4 {[%emt 0:01:12]} 10. Nd5 {[%emt 0:
00:02]} e6 {[%emt 0:00:05]} 11. Nxf6+ {[%emt 0:00:26]} Nxf6 {[%emt 0:00:02]}
12. f3 {[%emt 0:02:55]} a5 {[%emt 0:00:26]} 13. Bf1 {[%emt 0:02:40]} Be7 {
[%emt 0:00:23]} 14. Bb5+ {[%emt 0:00:06]} Nd7 {[%emt 0:00:02]} 15. Qd2 {
[%emt 0:02:31]} O-O {[%emt 0:00:13]} 16. O-O-O {[%emt 0:00:34]} Ne5 {[%emt 0:
00:37]} 17. Qe2 {[%emt 0:00:43]} a4 {[%emt 0:01:09]} 18. Nd4 {[%emt 0:00:30]}
b3 {[%emt 0:00:34]} 19. cxb3 {[%emt 0:02:17]} axb3 {[%emt 0:00:03]} 20. a3 {
[%emt 0:00:01]} Qb8 {[%emt 0:01:16]} 21. Kb1 {[%emt 0:00:08]} Rc8 {[%emt 0:00:
10]} 22. Rc1 {[%emt 0:00:05]} Rc5 {[%emt 0:00:34]} 23. Rxc5 {[%emt 0:00:55]}
dxc5 {[%emt 0:00:01]} 24. Nxb3 {[%emt 0:00:01]} c4 {[%emt 0:03:10]} 25. Bxc4 {
[%emt 0:00:48]} Nxg4 {[%emt 0:01:08]} 26. Rd1 {[%emt 0:00:28]} Nxe3 {[%emt 0:
00:08]} 27. Qxe3 {[%emt 0:00:04]} Bc6 {[%emt 0:00:39]} 28. Nd4 {[%emt 0:00:18]}
Be8 {[%emt 0:00:06]} 29. Qb3 {[%emt 0:00:04]} Qxh2 {[%emt 0:00:10]} 30. Bb5 {
[%emt 0:00:27]} Rb8 {[%emt 0:00:06]} 31. a4 {[%emt 0:00:01]} Bf6 {[%emt 0:00:
13]} 32. Qc4 {[%emt 0:00:19]} Qf2 {[%emt 0:00:17]} 33. Nc2 {[%emt 0:00:15]}
Qxf3 {[%emt 0:00:15]} 34. Rf1 {[%emt 0:00:18]} Qg2 {[%emt 0:00:21]} 35. b4 {
[%emt 0:00:10]} Bxb5 {[%emt 0:00:13]} 36. axb5 {[%emt 0:00:01]} Ra8 {[%emt 0:
00:01]} 37. Rxf6 {[%emt 0:00:17]} gxf6 {[%emt 0:00:03]} 38. Qc6 {[%emt 0:00:08]
} Rb8 {[%emt 0:00:10]} 39. Kb2 {[%emt 0:00:02]} Qe2 {[%emt 0:00:21]} 40. Qc3 {
[%emt 0:00:10]} Qxb5 {[%emt 0:00:27]} 41. Qxf6 {[%emt 0:00:02]} Rc8 {[%emt 0:
00:21]} 42. e5 {[%emt 0:00:11]} Qd3 {[%emt 0:00:10]} 43. Qg5+ {[%emt 0:00:03]}
Kf8 {[%emt 0:00:07]} 44. Qh6+ {[%emt 0:00:03]} Ke8 {[%emt 0:00:03]} 45. Qh2 {
[%emt 0:00:01]} h5 {[%emt 0:00:16]} 46. Qg2 {[%emt 0:00:20]} Rxc2+ {[%emt 0:00:
09]} 47. Qxc2 {[%emt 0:00:01]} Qxc2+ {[%emt 0:00:01]} 48. Kxc2 {[%emt 0:00:01]}
h4 {[%emt 0:00:04]} 0-1